[Event "Early-Titled-Tuesday-Blitz-June-18-2024"]
[Site "Chess.com"]
[Date "2024.06.18"]
[Round "6"]
[White "DarkAlekhine"]
[Black "Silent-Killer100"]
[Result "1-0"]
[WhiteElo "2744"]
[BlackElo "2570"]
[TimeControl "180+1"]
[EndTime "9:10:41 PDT"]
[Termination "DarkAlekhine won by resignation"]

1. e4 {[%clk 0:03:00.9]} 1... c5 {[%clk 0:02:53.1]} 2. Nf3 {[%clk 0:02:59.8]}
2... e6 {[%clk 0:02:49.9]} 3. c3 {[%clk 0:02:57.8]} 3... Nf6 {[%clk 0:02:46.3]}
4. e5 {[%clk 0:02:57.9]} 4... Nd5 {[%clk 0:02:46.3]} 5. d4 {[%clk 0:02:57.9]}
5... cxd4 {[%clk 0:02:45]} 6. cxd4 {[%clk 0:02:58.7]} 6... d6 {[%clk 0:02:45.3]}
7. Bd3 {[%clk 0:02:58.7]} 7... Nc6 {[%clk 0:02:44.5]} 8. O-O {[%clk 0:02:58.7]}
8... Be7 {[%clk 0:02:44.1]} 9. Bd2 {[%clk 0:02:51.3]} 9... h6 {[%clk 0:02:34.9]}
10. Qe2 {[%clk 0:02:50.8]} 10... Qb6 {[%clk 0:02:30.4]} 11. Nc3 {[%clk
0:02:32.3]} 11... Nxc3 {[%clk 0:01:22.3]} 12. Bxc3 {[%clk 0:02:30.2]} 12... dxe5
{[%clk 0:01:23]} 13. dxe5 {[%clk 0:02:29.1]} 13... Bd7 {[%clk 0:01:22.5]} 14.
Rac1 {[%clk 0:02:05.6]} 14... O-O-O {[%clk 0:01:06]} 15. Be4 {[%clk 0:01:38.9]}
15... Kb8 {[%clk 0:01:01.9]} 16. Rfd1 {[%clk 0:01:38.8]} 16... Bc8 {[%clk
0:00:57.4]} 17. a3 {[%clk 0:01:37.9]} 17... Rxd1+ {[%clk 0:00:56.5]} 18. Rxd1
{[%clk 0:01:38.8]} 18... Rd8 {[%clk 0:00:56.4]} 19. Rxd8 {[%clk 0:01:39]} 19...
Qxd8 {[%clk 0:00:52]} 20. Bxc6 {[%clk 0:01:37.7]} 20... bxc6 {[%clk 0:00:52.9]}
21. Nd4 {[%clk 0:01:22.7]} 21... Qd5 {[%clk 0:00:47]} 22. h3 {[%clk 0:01:11.8]}
22... Bb7 {[%clk 0:00:43.8]} 23. Qg4 {[%clk 0:01:08.6]} 23... Bf8 {[%clk
0:00:26]} 24. Qf4 {[%clk 0:01:01.7]} 24... Qd7 {[%clk 0:00:25.9]} 25. b4 {[%clk
0:01:00.6]} 25... c5 {[%clk 0:00:25.7]} 26. bxc5 {[%clk 0:01:00.1]} 26... Bxc5
{[%clk 0:00:26.6]} 27. Kh2 {[%clk 0:00:57.3]} 27... Bb6 {[%clk 0:00:22.1]} 28.
f3 {[%clk 0:00:57.3]} 28... a6 {[%clk 0:00:20.9]} 29. Ne2 {[%clk 0:00:47.6]}
29... Ka7 {[%clk 0:00:21]} 30. Bd4 {[%clk 0:00:47.5]} 30... Bxd4 {[%clk
0:00:20.6]} 31. Nxd4 {[%clk 0:00:48.4]} 31... Qd5 {[%clk 0:00:19]} 32. Qe3
{[%clk 0:00:46.5]} 32... Kb8 {[%clk 0:00:17.9]} 33. Nb3 {[%clk 0:00:45.5]} 33...
Kc7 {[%clk 0:00:16.2]} 34. Kg3 {[%clk 0:00:41.8]} 34... Qc4 {[%clk 0:00:15.4]}
35. h4 {[%clk 0:00:39.1]} 35... Qd5 {[%clk 0:00:15.2]} 36. a4 {[%clk 0:00:35.6]}
36... Bc6 {[%clk 0:00:15.2]} 37. a5 {[%clk 0:00:35.4]} 37... Qb5 {[%clk
0:00:15.1]} 38. Kh2 {[%clk 0:00:30.5]} 38... Bd5 {[%clk 0:00:14.6]} 39. Qa7+
{[%clk 0:00:30.6]} 39... Qb7 {[%clk 0:00:14.7]} 40. Qc5+ {[%clk 0:00:30.8]}
40... Qc6 {[%clk 0:00:09.7]} 41. Qe7+ {[%clk 0:00:22.8]} 41... Qd7 {[%clk
0:00:10.1]} 42. Qxd7+ {[%clk 0:00:23.3]} 42... Kxd7 {[%clk 0:00:10.8]} 43. Nc5+
{[%clk 0:00:24.2]} 43... Kc6 {[%clk 0:00:10.8]} 44. Nxa6 {[%clk 0:00:24.5]}
44... Kb5 {[%clk 0:00:11.3]} 45. Nc7+ {[%clk 0:00:24.1]} 45... Kxa5 {[%clk
0:00:11.5]} 46. Ne8 {[%clk 0:00:21.2]} 46... Kb5 {[%clk 0:00:03.5]} 47. Nxg7
{[%clk 0:00:20.1]} 47... Kc6 {[%clk 0:00:04.4]} 48. Kg3 {[%clk 0:00:19.6]} 48...
Kd7 {[%clk 0:00:04.5]} 49. Nh5 {[%clk 0:00:16.9]} 49... Ke7 {[%clk 0:00:04.7]}
50. Nf6 {[%clk 0:00:16.8]} 50... Kf8 {[%clk 0:00:02.7]} 51. Kf4 {[%clk
0:00:17.1]} 51... Bc6 {[%clk 0:00:02.4]} 52. Ke3 {[%clk 0:00:15.5]} 52... Kg7
{[%clk 0:00:03.3]} 53. h5 {[%clk 0:00:15.2]} 53... Kf8 {[%clk 0:00:03.3]} 54.
Kd4 {[%clk 0:00:15.3]} 54... Ba4 {[%clk 0:00:03.2]} 55. g3 {[%clk 0:00:13.7]}
55... Bd1 {[%clk 0:00:02.9]} 56. f4 {[%clk 0:00:14.2]} 56... Bc2 {[%clk
0:00:03.4]} 57. Kc5 {[%clk 0:00:14.5]} 57... Bb1 {[%clk 0:00:03.8]} 58. Kd6
{[%clk 0:00:14.7]} 58... Bf5 {[%clk 0:00:02.6]} 59. Nd7+ {[%clk 0:00:14.8]}
59... Kg7 {[%clk 0:00:02.4]} 60. Ke7 {[%clk 0:00:14.5]} 60... Bg4 {[%clk
0:00:02.8]} 61. Nf6 {[%clk 0:00:14.9]} 61... Bf3 {[%clk 0:00:03.3]} 62. g4
{[%clk 0:00:13.4]} 62... Be2 {[%clk 0:00:02.8]} 63. g5 {[%clk 0:00:13.6]} 63...
hxg5 {[%clk 0:00:03.3]} 64. fxg5 {[%clk 0:00:14.5]} 64... Bd3 {[%clk 0:00:03.7]}
65. Ne8+ {[%clk 0:00:14.1]} 65... Kg8 {[%clk 0:00:03.7]} 66. Kf6 {[%clk
0:00:14.5]} 66... Kf8 {[%clk 0:00:03.1]} 67. Nd6 {[%clk 0:00:14.3]} 67... Bh7
{[%clk 0:00:02.4]} 68. Nxf7 {[%clk 0:00:13.8]} 68... Bg8 {[%clk 0:00:03.3]} 69.
Nd6 {[%clk 0:00:12.3]} 69... Bh7 {[%clk 0:00:02]} 70. g6 {[%clk 0:00:12.7]}
70... Bxg6 {[%clk 0:00:01.6]} 71. hxg6 {[%clk 0:00:12.8]} 71... Kg8 {[%clk
0:00:02.5]} 72. g7 {[%clk 0:00:13.3]} 72... Kh7 {[%clk 0:00:02.9]} 73. Kf7
{[%clk 0:00:14.2]} 1-0

[Event "Early-Titled-Tuesday-Blitz-June-18-2024"]
[Site "Chess.com"]
[Date "2024.06.18"]
[Round "6"]
[White "N_I_Chess"]
[Black "FollowRivers"]
[Result "1/2-1/2"]
[WhiteElo "2334"]
[BlackElo "2497"]
[TimeControl "180+1"]
[EndTime "9:10:44 PDT"]
[Termination "Game drawn by repetition"]

1. d4 {[%clk 0:02:50.2]} 1... Nf6 {[%clk 0:02:58.9]} 2. c4 {[%clk 0:02:50]} 2...
g6 {[%clk 0:02:58.5]} 3. Nc3 {[%clk 0:02:49.8]} 3... Bg7 {[%clk 0:02:57.3]} 4.
e4 {[%clk 0:02:47.5]} 4... d6 {[%clk 0:02:57.2]} 5. f4 {[%clk 0:02:47.7]} 5...
O-O {[%clk 0:02:56.1]} 6. Nf3 {[%clk 0:02:46.6]} 6... e5 {[%clk 0:02:55.6]} 7.
fxe5 {[%clk 0:02:46.7]} 7... dxe5 {[%clk 0:02:55.1]} 8. d5 {[%clk 0:02:46.9]}
8... c6 {[%clk 0:02:49.4]} 9. Bd3 {[%clk 0:02:44.6]} 9... b5 {[%clk 0:02:44.3]}
10. O-O {[%clk 0:02:27.6]} 10... bxc4 {[%clk 0:02:43]} 11. Bxc4 {[%clk 0:02:27]}
11... cxd5 {[%clk 0:02:42.9]} 12. exd5 {[%clk 0:02:15.2]} 12... Nbd7 {[%clk
0:02:24.3]} 13. Bg5 {[%clk 0:01:53.8]} 13... h6 {[%clk 0:01:44.5]} 14. Bh4
{[%clk 0:01:47.8]} 14... e4 {[%clk 0:01:37.6]} 15. Nxe4 {[%clk 0:01:28.6]} 15...
Qb6+ {[%clk 0:01:35.2]} 16. Bf2 {[%clk 0:01:28.7]} 16... Qxb2 {[%clk 0:01:33.7]}
17. Rb1 {[%clk 0:01:20.5]} 17... Qa3 {[%clk 0:01:29.6]} 18. Nxf6+ {[%clk
0:01:13.1]} 18... Nxf6 {[%clk 0:01:20.7]} 19. Kh1 {[%clk 0:01:01.1]} 19... Bf5
{[%clk 0:01:17.8]} 20. Rb7 {[%clk 0:00:49.2]} 20... Ne4 {[%clk 0:01:15.2]} 21.
Bg1 {[%clk 0:00:31.4]} 21... Nd6 {[%clk 0:01:06.5]} 22. Rc7 {[%clk 0:00:31]}
22... Qa5 {[%clk 0:01:00.3]} 23. Rc6 {[%clk 0:00:23.5]} 23... Nxc4 {[%clk
0:00:59.2]} 24. Rxc4 {[%clk 0:00:24.4]} 24... Qxa2 {[%clk 0:00:59.5]} 25. Ra4
{[%clk 0:00:20.5]} 25... Qc2 {[%clk 0:00:55.2]} 26. Rxa7 {[%clk 0:00:19.3]}
26... Rad8 {[%clk 0:00:47.9]} 27. Qxc2 {[%clk 0:00:18.3]} 27... Bxc2 {[%clk
0:00:46.9]} 28. Ra5 {[%clk 0:00:16.9]} 28... Bb3 {[%clk 0:00:44.6]} 29. Bc5
{[%clk 0:00:14.3]} 29... Rxd5 {[%clk 0:00:34.1]} 30. Bxf8 {[%clk 0:00:10.3]}
30... Rxa5 {[%clk 0:00:32.4]} 31. Bxg7 {[%clk 0:00:10.9]} 31... Kxg7 {[%clk
0:00:33]} 32. Nd4 {[%clk 0:00:08.6]} 32... Bd5 {[%clk 0:00:31.8]} 33. Kg1 {[%clk
0:00:02.9]} 33... Ra2 {[%clk 0:00:31.6]} 34. Rf2 {[%clk 0:00:03.4]} 34... Ra1+
{[%clk 0:00:30.5]} 35. Rf1 {[%clk 0:00:03.8]} 35... Ra2 {[%clk 0:00:31.4]} 36.
Rf2 {[%clk 0:00:04.2]} 36... Ra4 {[%clk 0:00:30.7]} 37. Ne2 {[%clk 0:00:04.3]}
37... Ra1+ {[%clk 0:00:25.6]} 38. Rf1 {[%clk 0:00:04.6]} 38... Rxf1+ {[%clk
0:00:18.9]} 39. Kxf1 {[%clk 0:00:05.3]} 39... Bc4 {[%clk 0:00:19.8]} 40. Kf2
{[%clk 0:00:05.6]} 40... Bxe2 {[%clk 0:00:20.3]} 41. Kxe2 {[%clk 0:00:06.2]}
41... Kf6 {[%clk 0:00:21.2]} 42. Ke3 {[%clk 0:00:06.2]} 42... Ke5 {[%clk
0:00:21.5]} 43. g3 {[%clk 0:00:05.3]} 43... h5 {[%clk 0:00:18.2]} 44. h3 {[%clk
0:00:05.9]} 44... Kf5 {[%clk 0:00:13.9]} 45. Kf3 {[%clk 0:00:05.7]} 45... g5
{[%clk 0:00:14.1]} 46. Ke3 {[%clk 0:00:05.6]} 46... g4 {[%clk 0:00:05]} 47. h4
{[%clk 0:00:05.7]} 47... Ke5 {[%clk 0:00:04.1]} 48. Kd3 {[%clk 0:00:06.4]} 48...
f5 {[%clk 0:00:03.4]} 49. Ke3 {[%clk 0:00:07]} 49... f4+ {[%clk 0:00:03.2]} 50.
gxf4+ {[%clk 0:00:07.1]} 50... Kf5 {[%clk 0:00:04.1]} 51. Kf2 {[%clk 0:00:07.3]}
51... Kxf4 {[%clk 0:00:04.3]} 52. Kg2 {[%clk 0:00:08.2]} 52... g3 {[%clk
0:00:04.5]} 53. Kh3 {[%clk 0:00:04.5]} 53... Ke3 {[%clk 0:00:02.2]} 54. Kxg3
{[%clk 0:00:03.5]} 54... Ke4 {[%clk 0:00:03.1]} 55. Kh3 {[%clk 0:00:03.6]} 55...
Kf4 {[%clk 0:00:04]} 56. Kg2 {[%clk 0:00:03.8]} 56... Kg4 {[%clk 0:00:04.9]} 57.
Kh2 {[%clk 0:00:04.7]} 57... Kxh4 {[%clk 0:00:05.5]} 58. Kg1 {[%clk 0:00:05.6]}
58... Kg4 {[%clk 0:00:06.4]} 59. Kh1 {[%clk 0:00:06.5]} 59... h4 {[%clk
0:00:06.9]} 60. Kg1 {[%clk 0:00:07.4]} 60... Kg3 {[%clk 0:00:07.1]} 61. Kh1
{[%clk 0:00:08.3]} 61... h3 {[%clk 0:00:06.6]} 62. Kg1 {[%clk 0:00:09.2]} 62...
Kg4 {[%clk 0:00:07.2]} 63. Kh1 {[%clk 0:00:10.1]} 63... Kh4 {[%clk 0:00:07.6]}
64. Kg1 {[%clk 0:00:09.3]} 64... Kg5 {[%clk 0:00:08.2]} 65. Kh1 {[%clk
0:00:10.2]} 65... Kg4 {[%clk 0:00:08.5]} 66. Kg1 {[%clk 0:00:11.1]} 66... Kf3
{[%clk 0:00:09.1]} 67. Kh2 {[%clk 0:00:11.1]} 67... Kg4 {[%clk 0:00:09.7]} 68.
Kh1 {[%clk 0:00:11.1]} 68... Kg3 {[%clk 0:00:09.9]} 69. Kg1 {[%clk 0:00:09.5]}
69... Kh4 {[%clk 0:00:10.8]} 70. Kh1 {[%clk 0:00:09.1]} 70... Kg5 {[%clk
0:00:09.4]} 71. Kh2 {[%clk 0:00:08]} 71... Kg4 {[%clk 0:00:10.3]} 72. Kh1 {[%clk
0:00:08.3]} 1/2-1/2

[Event "Early-Titled-Tuesday-Blitz-June-18-2024"]
[Site "Chess.com"]
[Date "2024.06.18"]
[Round "6"]
[White "Sam_ChessMood"]
[Black "chess123456s"]
[Result "1-0"]
[WhiteElo "2937"]
[BlackElo "2615"]
[TimeControl "180+1"]
[EndTime "9:10:50 PDT"]
[Termination "Sam_ChessMood won by resignation"]

1. d4 {[%clk 0:03:00.9]} 1... Nf6 {[%clk 0:02:57]} 2. Bg5 {[%clk 0:03:00]} 2...
Ne4 {[%clk 0:02:56.7]} 3. Bh4 {[%clk 0:02:59.6]} 3... c5 {[%clk 0:02:55.5]} 4.
d5 {[%clk 0:02:51.7]} 4... Qb6 {[%clk 0:02:48.1]} 5. Qc1 {[%clk 0:02:40.9]} 5...
g5 {[%clk 0:02:37.3]} 6. Bg3 {[%clk 0:02:37.1]} 6... Bg7 {[%clk 0:02:36.9]} 7.
c3 {[%clk 0:02:36.5]} 7... Qh6 {[%clk 0:02:36.1]} 8. Bxb8 {[%clk 0:02:17.3]}
8... Rxb8 {[%clk 0:02:35.1]} 9. Nd2 {[%clk 0:02:17.8]} 9... Nxd2 {[%clk
0:02:30.2]} 10. Qxd2 {[%clk 0:02:17.7]} 10... d6 {[%clk 0:02:30.2]} 11. h4
{[%clk 0:02:14.7]} 11... g4 {[%clk 0:02:28.6]} 12. e3 {[%clk 0:02:10.8]} 12...
b5 {[%clk 0:02:27.6]} 13. g3 {[%clk 0:02:04.1]} 13... b4 {[%clk 0:02:23]} 14. c4
{[%clk 0:02:04.2]} 14... Qf6 {[%clk 0:02:11.7]} 15. Rb1 {[%clk 0:02:02.7]} 15...
Bf5 {[%clk 0:02:01.7]} 16. Bd3 {[%clk 0:02:02.1]} 16... O-O {[%clk 0:01:59.8]}
17. Ne2 {[%clk 0:01:56.9]} 17... a5 {[%clk 0:01:51.4]} 18. O-O {[%clk
0:01:54.2]} 18... a4 {[%clk 0:01:48.3]} 19. Nf4 {[%clk 0:01:53.5]} 19... Bxd3
{[%clk 0:01:35.1]} 20. Qxd3 {[%clk 0:01:53.6]} 20... Bh6 {[%clk 0:01:32.7]} 21.
Rfe1 {[%clk 0:01:39.1]} 21... Rb7 {[%clk 0:01:22.7]} 22. Re2 {[%clk 0:01:39.2]}
22... Rfb8 {[%clk 0:01:09.7]} 23. Rd1 {[%clk 0:01:38.8]} 23... Qe5 {[%clk
0:01:05.9]} 24. Rde1 {[%clk 0:01:30.9]} 24... Bg7 {[%clk 0:01:03.8]} 25. Qb1
{[%clk 0:01:28.8]} 25... b3 {[%clk 0:00:58.9]} 26. a3 {[%clk 0:01:28.7]} 26...
Qf6 {[%clk 0:00:47.3]} 27. Rd1 {[%clk 0:01:22.1]} 27... Qe5 {[%clk 0:00:42.5]}
28. Red2 {[%clk 0:01:21]} 28... Bh6 {[%clk 0:00:40.2]} 29. Qd3 {[%clk
0:01:18.7]} 29... Bg7 {[%clk 0:00:39.4]} 30. Ne2 {[%clk 0:01:18.2]} 30... Qf6
{[%clk 0:00:37.2]} 31. Nc3 {[%clk 0:01:16.7]} 31... Ra8 {[%clk 0:00:31.1]} 32.
Rc1 {[%clk 0:01:13]} 32... Qf3 {[%clk 0:00:30.4]} 33. e4 {[%clk 0:01:08]} 33...
Qxd3 {[%clk 0:00:28.9]} 34. Rxd3 {[%clk 0:01:08.3]} 34... h5 {[%clk 0:00:26.1]}
35. f3 {[%clk 0:01:02.6]} 35... Bd4+ {[%clk 0:00:25.2]} 36. Kg2 {[%clk 0:01:02]}
36... gxf3+ {[%clk 0:00:25.3]} 37. Rxf3 {[%clk 0:01:02.1]} 37... f6 {[%clk
0:00:23.5]} 38. Rf5 {[%clk 0:00:57.9]} 38... Kg7 {[%clk 0:00:22.7]} 39. Rxh5
{[%clk 0:00:56.9]} 39... Kg6 {[%clk 0:00:22]} 40. Rf5 {[%clk 0:00:56.7]} 40...
Rh8 {[%clk 0:00:20.7]} 41. Nxa4 {[%clk 0:00:45.4]} 41... Ra8 {[%clk 0:00:20.1]}
42. Nc3 {[%clk 0:00:45.3]} 42... Bxc3 {[%clk 0:00:19.9]} 43. Rxc3 {[%clk
0:00:43.2]} 43... Rxa3 {[%clk 0:00:19.8]} 44. Rf2 {[%clk 0:00:27.6]} 44... Ra2
{[%clk 0:00:19.1]} 45. Kh3 {[%clk 0:00:24]} 45... Rb4 {[%clk 0:00:19.1]} 46. Kg4
{[%clk 0:00:23.8]} 46... Raa4 {[%clk 0:00:19]} 47. h5+ {[%clk 0:00:12.6]} 47...
Kf7 {[%clk 0:00:18.6]} 48. Kf4 {[%clk 0:00:05.6]} 48... Rxc4 {[%clk 0:00:17.8]}
49. Rxc4 {[%clk 0:00:06]} 49... Rxc4 {[%clk 0:00:18.4]} 50. Rf3 {[%clk
0:00:06.5]} 50... e5+ {[%clk 0:00:14.7]} 51. Kf5 {[%clk 0:00:03.9]} 51... Rb4
{[%clk 0:00:06.5]} 52. h6 {[%clk 0:00:03.6]} 52... c4 {[%clk 0:00:06.4]} 53. h7
{[%clk 0:00:03.5]} 53... Rb8 {[%clk 0:00:06.6]} 54. g4 {[%clk 0:00:02.3]} 54...
Rh8 {[%clk 0:00:06.3]} 55. Rh3 {[%clk 0:00:02.5]} 55... Kg7 {[%clk 0:00:06.3]}
56. Ke6 {[%clk 0:00:02.1]} 56... Rxh7 {[%clk 0:00:06.7]} 57. Rc3 {[%clk
0:00:02.3]} 57... Rh2 {[%clk 0:00:04.5]} 58. Rxc4 {[%clk 0:00:02.6]} 58... Rxb2
{[%clk 0:00:04.7]} 59. Kxd6 {[%clk 0:00:03.1]} 59... Rc2 {[%clk 0:00:05.2]} 60.
Rb4 {[%clk 0:00:03.1]} 60... b2 {[%clk 0:00:03.8]} 61. Ke6 {[%clk 0:00:03.5]}
61... Rc4 {[%clk 0:00:03.5]} 62. Rxb2 {[%clk 0:00:03.3]} 62... Rxe4 {[%clk
0:00:03.5]} 63. d6 {[%clk 0:00:03.7]} 63... Rd4 {[%clk 0:00:03.8]} 64. d7 {[%clk
0:00:04]} 64... Kg6 {[%clk 0:00:04.2]} 65. Rb6 {[%clk 0:00:03.9]} 65... Rxd7
{[%clk 0:00:01.2]} 66. Kxd7 {[%clk 0:00:03.4]} 66... Kg5 {[%clk 0:00:01.9]} 67.
Ke6 {[%clk 0:00:03.6]} 67... e4 {[%clk 0:00:01.7]} 68. Rb4 {[%clk 0:00:03.7]}
68... Kf4 {[%clk 0:00:01.4]} 69. Kxf6 {[%clk 0:00:03.5]} 69... Kf3 {[%clk
0:00:02.1]} 70. Rxe4 {[%clk 0:00:03.2]} 70... Kxe4 {[%clk 0:00:02.1]} 71. g5
{[%clk 0:00:03.5]} 71... Kf4 {[%clk 0:00:03]} 1-0

[Event "Early-Titled-Tuesday-Blitz-June-18-2024"]
[Site "Chess.com"]
[Date "2024.06.18"]
[Round "6"]
[White "Omranalhosani21"]
[Black "GothamChess"]
[Result "1-0"]
[WhiteElo "2562"]
[BlackElo "2760"]
[TimeControl "180+1"]
[EndTime "9:10:50 PDT"]
[Termination "Omranalhosani21 won by checkmate"]

1. d4 {[%clk 0:03:00]} 1... g6 {[%clk 0:02:57.3]} 2. c4 {[%clk 0:02:59.6]} 2...
Bg7 {[%clk 0:02:57.8]} 3. Nf3 {[%clk 0:02:59.8]} 3... d6 {[%clk 0:02:58.3]} 4.
g3 {[%clk 0:03:00.1]} 4... Nc6 {[%clk 0:02:58.9]} 5. Bg2 {[%clk 0:03:00.1]} 5...
Bd7 {[%clk 0:02:59.7]} 6. O-O {[%clk 0:02:59.9]} 6... Qc8 {[%clk 0:03:00.3]} 7.
Re1 {[%clk 0:02:57]} 7... Bh3 {[%clk 0:03:00.9]} 8. Bh1 {[%clk 0:02:57.2]} 8...
h5 {[%clk 0:03:01.6]} 9. d5 {[%clk 0:02:55.9]} 9... Ne5 {[%clk 0:03:01.5]} 10.
Nxe5 {[%clk 0:02:53.6]} 10... Bxe5 {[%clk 0:03:02.4]} 11. Nd2 {[%clk 0:02:54.3]}
11... h4 {[%clk 0:03:02.9]} 12. Nf3 {[%clk 0:02:54.1]} 12... hxg3 {[%clk
0:03:03.5]} 13. hxg3 {[%clk 0:02:24.1]} 13... Bg7 {[%clk 0:02:58.6]} 14. Ng5
{[%clk 0:02:19.4]} 14... Bg4 {[%clk 0:02:34.6]} 15. Bg2 {[%clk 0:02:12.7]} 15...
Nh6 {[%clk 0:02:23.4]} 16. Qb3 {[%clk 0:02:05.8]} 16... Nf5 {[%clk 0:02:18.7]}
17. e3 {[%clk 0:01:38.9]} 17... Bf6 {[%clk 0:02:14.2]} 18. Ne4 {[%clk
0:01:35.7]} 18... Bh3 {[%clk 0:02:02.6]} 19. Bf3 {[%clk 0:01:13.8]} 19... Be5
{[%clk 0:02:00]} 20. c5 {[%clk 0:01:06.1]} 20... Kf8 {[%clk 0:01:58.7]} 21. Bd2
{[%clk 0:01:04.4]} 21... Nh4 {[%clk 0:01:44]} 22. gxh4 {[%clk 0:00:29.2]} 22...
Qf5 {[%clk 0:01:42.6]} 23. Qd1 {[%clk 0:00:25.2]} 23... Rxh4 {[%clk 0:01:42.2]}
24. Ng3 {[%clk 0:00:25.5]} 24... Qg5 {[%clk 0:01:38.2]} 25. Bg2 {[%clk 0:00:13]}
25... Bxg3 {[%clk 0:01:33.5]} 26. fxg3 {[%clk 0:00:13.4]} 26... Qxg3 {[%clk
0:01:31.8]} 27. Qf3 {[%clk 0:00:13.1]} 27... Qg5 {[%clk 0:01:22.8]} 28. Rf1
{[%clk 0:00:13]} 28... f6 {[%clk 0:01:14.2]} 29. Rf2 {[%clk 0:00:13]} 29... Kg7
{[%clk 0:01:08.5]} 30. Kf1 {[%clk 0:00:08]} 30... Bxg2+ {[%clk 0:00:54.8]} 31.
Rxg2 {[%clk 0:00:08.9]} 31... Rh1+ {[%clk 0:00:53.3]} 32. Ke2 {[%clk 0:00:09]}
32... Qxg2+ {[%clk 0:00:38.5]} 33. Qxg2 {[%clk 0:00:08.9]} 33... Rxa1 {[%clk
0:00:39.4]} 34. Qe4 {[%clk 0:00:09.2]} 34... Re8 {[%clk 0:00:36]} 35. Qa4 {[%clk
0:00:07.2]} 35... Kf7 {[%clk 0:00:35.5]} 36. Bc3 {[%clk 0:00:05.2]} 36... dxc5
{[%clk 0:00:30.3]} 37. Qxa7 {[%clk 0:00:04.8]} 37... b5 {[%clk 0:00:24.1]} 38.
Qxc7 {[%clk 0:00:05]} 38... b4 {[%clk 0:00:24.1]} 39. Bd2 {[%clk 0:00:05]} 39...
Rxa2 {[%clk 0:00:24.2]} 40. Qxc5 {[%clk 0:00:05.5]} 40... Rxb2 {[%clk
0:00:24.9]} 41. Qc4 {[%clk 0:00:05.9]} 41... Kg7 {[%clk 0:00:17.4]} 42. Qd4
{[%clk 0:00:06.3]} 42... Rc2 {[%clk 0:00:14.9]} 43. Kd3 {[%clk 0:00:06.3]} 43...
Rcc8 {[%clk 0:00:14.6]} 44. Bxb4 {[%clk 0:00:06.6]} 44... Rcd8 {[%clk
0:00:15.3]} 45. Bc3 {[%clk 0:00:07]} 45... Rd7 {[%clk 0:00:11.8]} 46. e4 {[%clk
0:00:07.3]} 46... Red8 {[%clk 0:00:12.5]} 47. Qg1 {[%clk 0:00:07.1]} 47... Rh8
{[%clk 0:00:11.1]} 48. Qf2 {[%clk 0:00:07.2]} 48... Rh3+ {[%clk 0:00:11.3]} 49.
Kd2 {[%clk 0:00:04]} 49... Rc7 {[%clk 0:00:09]} 50. Bd4 {[%clk 0:00:02.5]} 50...
Ra3 {[%clk 0:00:09]} 51. Qf4 {[%clk 0:00:02.1]} 51... Ra2+ {[%clk 0:00:09.1]}
52. Kd1 {[%clk 0:00:02.6]} 52... Rb7 {[%clk 0:00:08.6]} 53. Kc1 {[%clk
0:00:02.1]} 53... Rc7+ {[%clk 0:00:08.9]} 54. Qxc7 {[%clk 0:00:02]} 54... Kh6
{[%clk 0:00:02.8]} 55. d6 {[%clk 0:00:02.9]} 55... exd6 {[%clk 0:00:02.1]} 56.
Qxd6 {[%clk 0:00:03.8]} 56... Ra4 {[%clk 0:00:01.2]} 57. Qxf6 {[%clk 0:00:04.1]}
57... Rc4+ {[%clk 0:00:01.9]} 58. Kd2 {[%clk 0:00:04.3]} 58... Kh5 {[%clk
0:00:02.2]} 59. Qf3+ {[%clk 0:00:04.3]} 59... Kh6 {[%clk 0:00:01.5]} 60. Be3+
{[%clk 0:00:04.8]} 60... Kg7 {[%clk 0:00:01.7]} 61. Kd3 {[%clk 0:00:05.4]} 61...
Rc7 {[%clk 0:00:01.7]} 62. Bd4+ {[%clk 0:00:06.1]} 62... Kh6 {[%clk 0:00:01.3]}
63. Qh3+ {[%clk 0:00:06.5]} 63... Kg5 {[%clk 0:00:01.6]} 64. Qg3+ {[%clk
0:00:07.3]} 64... Kh6 {[%clk 0:00:01.4]} 65. Qxc7 {[%clk 0:00:07.7]} 65... g5
{[%clk 0:00:02.3]} 66. Qg7+ {[%clk 0:00:07.6]} 66... Kh5 {[%clk 0:00:02.7]} 67.
Ke3 {[%clk 0:00:08.2]} 67... Kg4 {[%clk 0:00:02.4]} 68. Bf6 {[%clk 0:00:07.3]}
68... Kh3 {[%clk 0:00:02.8]} 69. Qh6+ {[%clk 0:00:07.5]} 69... Kg2 {[%clk
0:00:02.7]} 70. Qxg5+ {[%clk 0:00:08]} 70... Kf1 {[%clk 0:00:03.6]} 71. Qf4+
{[%clk 0:00:08]} 71... Ke1 {[%clk 0:00:03.5]} 72. Qf2+ {[%clk 0:00:07.8]} 72...
Kd1 {[%clk 0:00:03.9]} 73. Qd2# {[%clk 0:00:08.2]} 1-0